bitfinex/quotes_SOLUSD_20260203
["timestamp","ask_amount","ask_price","bid_price","bid_amount"]
[1770112237439,4.88713676,103.22,103.19,9.69082785]
[1770112237643,2.00001132,103.22,103.19,11.82687366]
[1770112238971,4.88713676,103.23,103.2,2.13604581]
[1770112239135,2.00001132,103.23,103.2,2.13604581]
[1770112239554,2.00001132,103.23,103.2,11.825835]
[1770112241155,14.57549305,103.24,103.21,2.13604581]
[1770112241340,4.88854591,103.24,103.21,2.13604581]
[1770112242241,14.57472675,103.24,103.21,2.13604581]
[1770112243346,2.00001132,103.23,103.2,2.13604581]
[1770112243548,2.00001132,103.22,103.19,2.13604581]
[1770112244352,2.00001132,103.22,103.19,11.82687228]
[1770112245263,11.68843912,103.22,103.19,2.13604581]
[1770112245560,2.00001132,103.2,103.18,9.69140558]
[1770112245765,4.88854591,103.21,103.18,11.82745139]
[1770112247366,14.57829543,103.21,103.18,11.82784534]
[1770112248366,2.00001132,103.21,103.18,11.82784534]
[1770112248960,11.68904555,103.21,103.18,11.82784534]
[1770112249157,2.00001132,103.21,103.18,14.71637993]
[1770112249445,11.68898226,103.22,103.19,2.13604581]
[1770112249770,11.68758853,103.23,103.2,2.13604581]
[1770112250151,14.57612312,103.23,103.2,2.13604581]
[1770112251156,2.00001132,103.23,103.2,11.82584667]
[1770112252372,9.68667542,103.24,103.21,1.99475563]
[1770112252556,2.01936408,103.24,103.21,1.99475563]
[1770112253060,11.70574712,103.24,103.21,1.99475563]
[1770112253570,14.59428171,103.24,103.21,1.99475563]
[1770112253773,4.90789867,103.23,103.2,1.99475563]
[1770112254363,2.01936408,103.22,103.19,1.99475563]
[1770112255175,2.01936408,103.22,103.19,11.68546874]
[1770112256380,12.57641758,103.23,103.2,1.99475563]
[1770112256674,9.68788299,103.23,103.2,1.99475563]
[1770112258678,11.70724707,103.23,103.2,1.99475563]
[1770112259266,14.59578166,103.23,103.2,1.99475563]
[1770112260685,4.90789867,103.22,103.19,1.99475563]
[1770112261292,4.90789867,103.2,103.16,9.89322967]
[1770112261585,4.90789867,103.18,103.16,0.2]
[1770112262087,4.90789867,103.19,103.16,2.19475563]
[1770112262988,2.01936408,103.19,103.16,11.88837332]
[1770112263174,2.01936408,103.22,103.19,1.99475563]
[1770112263564,4.90789867,103.23,103.19,1.99475563]
[1770112263880,4.90789867,103.22,103.19,1.99475563]
[1770112264191,2.01936408,103.21,103.18,1.99475563]
[1770112264681,4.90789867,103.2,103.17,1.99475563]
[1770112264884,14.59811013,103.2,103.17,1.99475563]
[1770112265987,14.59742305,103.21,103.18,1.99475563]
[1770112268991,2.01936408,103.21,103.18,11.6865102]
[1770112270489,14.59647991,103.22,103.19,1.99475563]
[1770112270695,11.70794532,103.22,103.19,1.99475563]
[1770112271291,2.01936408,103.19,103.15,0.2]
[1770112271490,4.90789867,103.17,103.15,0.2]
[1770112272190,14.59831463,103.2,103.16,1.99475563]
[1770112273384,14.59831463,103.2,103.16,11.68802041]
[1770112275995,11.70978004,103.2,103.17,1.99475563]
[1770112276292,14.59831463,103.2,103.17,1.99475563]
[1770112278994,14.59744251,103.21,103.18,1.99475563]
[1770112279193,9.68861098,103.22,103.18,1.99475563]
[1770112279493,11.70647298,103.23,103.2,1.99475563]
[1770112279992,14.59451773,103.24,103.2,1.99475563]
[1770112280189,4.90789867,103.24,103.2,1.99475563]
[1770112280696,14.59434121,103.24,103.2,1.99475563]
[1770112281083,14.59434121,103.24,103.21,2.01489208]
[1770112281692,4.90059763,103.26,103.22,4.90342667]
[1770112281993,4.90059763,103.26,103.23,2.01489208]
[1770112282389,2.01206304,103.28,103.24,2.01489208]
[1770112282592,4.90059763,103.28,103.24,4.90342667]
[1770112282976,2.01206304,103.28,103.25,11.69975757]
[1770112283896,14.58245749,103.29,103.25,11.69975757]
[1770112284399,19.42365456,103.29,103.25,11.69975757]
[1770112285400,19.42365456,103.29,103.25,19.42948923]
[1770112286394,19.42365456,103.29,103.25,2.01489208]
[1770112286719,9.7417947,103.28,103.25,2.01489208]
[1770112287519,9.7417947,103.29,103.26,2.01489208]
[1770112287810,2.01206304,103.29,103.26,2.01489208]
[1770112289816,19.42274615,103.3,103.27,2.01489208]
[1770112290106,2.01206304,103.29,103.26,11.69905387]
[1770112290483,2.01206304,103.3,103.27,2.01489208]
[1770112290701,9.7417947,103.3,103.27,2.01489208]
[1770112291306,2.01206304,103.28,103.25,2.01489208]
[1770112291807,7.72973166,103.28,103.26,2.01489208]
[1770112292102,9.7417947,103.28,103.25,2.01489208]
[1770112292909,2.01206304,103.28,103.25,2.01489208]
[1770112293086,9.7417947,103.28,103.25,11.69998002]
[1770112294008,19.42444722,103.28,103.25,2.01489208]
[1770112295705,19.42382175,103.29,103.26,2.01489208]
[1770112295883,43.6248861,103.3,103.26,2.01489208]
[1770112296079,43.6248861,103.3,103.26,11.69914217]
[1770112296283,2.01206304,103.29,103.26,11.69914217]
[1770112297998,11.69365173,103.29,103.26,11.69914217]
[1770112299411,2.01206304,103.29,103.26,11.69914217]
[1770112300514,19.42283371,103.3,103.27,2.01489208]
[1770112300690,9.7417947,103.29,103.27,2.01489208]
[1770112301109,2.01206304,103.29,103.27,2.01489208]
[1770112303214,19.42201089,103.3,103.27,11.69821042]
[1770112304213,2.01206304,103.29,103.27,2.01489208]
[1770112305211,11.69378654,103.29,103.27,2.01489208]
[1770112306010,5.09751647,103.31,103.27,2.01489208]
[1770112306208,2.01206304,103.3,103.27,11.69804323]
[1770112306390,14.57818173,103.3,103.27,2.01489208]
[1770112307617,11.6927283,103.3,103.27,11.69815912]
[1770112308097,14.57818173,103.3,103.27,11.69815912]
[1770112308909,12.56611869,103.3,103.27,11.69815912]
[1770112309107,2.01206304,103.29,103.26,35.90938728]
[1770112309309,2.01206304,103.29,103.27,2.01489208]
[1770112310121,2.01206304,103.29,103.27,11.69821972]
[1770112310314,11.54629248,103.3,103.27,11.69821972]
[1770112311119,1.86562722,103.3,103.27,11.69821972]
[1770112311320,2.06562722,103.31,103.28,4.78747499]
[1770112311619,0.2,103.34,103.31,1.90202156]
[1770112311620,2.06562722,103.34,103.31,1.90202156]
[1770112311922,0.2,103.34,103.32,1.90202156]
[1770112312396,2.11813672,103.34,103.31,2.03334023]
[1770112313414,11.79496581,103.34,103.31,2.03334023]
[1770112313608,11.79496581,103.34,103.32,2.03334023]
[1770112313609,9.87682909,103.34,103.32,2.03334023]
[1770112314418,9.87682909,103.34,103.31,9.67955372]
[1770112314714,9.87682909,103.34,103.31,2.03334023]
[1770112314893,9.87682909,103.34,103.3,2.88545343]
[1770112314894,4.80359015,103.33,103.3,2.03334023]
[1770112315094,1.91813672,103.32,103.29,2.03334023]
[1770112315309,4.80359015,103.32,103.29,2.03334023]
[1770112315489,4.80359015,103.33,103.29,2.03334023]
[1770112315694,1.91813672,103.32,103.29,2.03334023]
[1770112315901,4.80359015,103.32,103.29,2.03334023]
[1770112316103,4.80359015,103.32,103.29,11.71468688]
[1770112316417,14.48227973,103.32,103.29,11.71468688]
[1770112316717,14.48227973,103.32,103.27,27.0934365]
[1770112316718,4.80359015,103.31,103.28,11.71521477]
[1770112316892,2.88545343,103.31,103.29,2.03334023]
[1770112317096,4.80359015,103.31,103.28,2.03334023]
[1770112317297,1.91813672,103.31,103.28,2.03334023]
[1770112317523,4.80359015,103.31,103.28,2.03334023]
[1770112317701,4.80359015,103.31,103.28,11.71574364]
[1770112317902,33.87536011,103.32,103.29,11.71479695]
[1770112317903,14.48227973,103.32,103.29,11.71479695]
[1770112318103,11.5968263,103.32,103.29,11.71479695]
[1770112318409,1.91813672,103.33,103.3,2.03334023]
[1770112318817,11.79544826,103.34,103.31,2.03334023]
[1770112319012,11.79544826,103.34,103.31,4.91879366]
[1770112319213,11.79544826,103.34,103.31,2.03334023]
[1770112320316,0.2,103.34,103.31,12.56494528]
[1770112320518,2.11813672,103.34,103.31,14.59828551]
[1770112321205,1.91813672,103.31,103.27,9.68322472]
[1770112321406,2.88545343,103.3,103.27,11.71656495]
[1770112322425,1.91813672,103.28,103.25,2.03334023]
[1770112322626,1.91813672,103.28,103.25,11.71816578]
[1770112323012,1.91813672,103.26,103.23,4.91879366]
[1770112323218,4.80359015,103.26,103.23,2.03334023]
[1770112323416,1.91813672,103.28,103.25,2.03334023]
[1770112323923,1.91813672,103.27,103.24,2.03334023]
[1770112324128,4.80359015,103.25,103.21,2.88545343]
[1770112324313,4.80359015,103.24,103.21,11.72170332]
[1770112324627,4.80359015,103.24,103.2,24.22446724]
[1770112324628,4.80359015,103.24,103.2,11.72277893]
[1770112324813,4.80359015,103.23,103.2,2.03334023]
[1770112325016,4.80359015,103.23,103.19,11.72374455]
[1770112325531,4.80359015,103.23,103.2,9.68980496]
[1770112326633,9.6564805,103.24,103.21,2.03334023]
[1770112327131,9.6564805,103.24,103.2,35.94795139]
[1770112327308,9.6564805,103.24,103.2,43.68629517]
[1770112327827,1.91813672,103.24,103.21,2.03334023]
[1770112328333,1.91813672,103.24,103.21,11.7217609]
[1770112328721,9.6564805,103.24,103.21,11.7217609]
[1770112328914,9.6564805,103.23,103.2,2.03334023]
[1770112329132,7.73834378,103.24,103.21,2.03334023]
[1770112329334,19.34214345,103.25,103.21,2.03334023]
[1770112329535,1.91813672,103.24,103.21,11.72207669]
[1770112330713,9.6564805,103.24,103.21,11.72207669]
[1770112331633,9.6564805,103.23,103.19,2.03334023]
[1770112331831,9.6564805,103.23,103.2,9.68988659]
[1770112332228,9.6564805,103.23,103.19,9.69086151]
[1770112332536,1.91813672,103.23,103.2,2.03334023]
[1770112333136,7.73834378,103.24,103.2,2.03334023]
[1770112333329,9.6564805,103.25,103.21,2.03334023]
[1770112333844,1.91813672,103.25,103.22,2.03334023]
[1770112334224,9.6564805,103.25,103.22,2.03334023]
[1770112334541,9.6564805,103.25,103.22,11.72122674]
[1770112335737,1.91813672,103.24,103.21,11.72190023]
[1770112335955,9.6564805,103.24,103.21,11.72190023]
[1770112337339,1.91813672,103.24,103.21,11.72190023]
[1770112337537,9.6564805,103.25,103.22,2.03334023]
[1770112337736,1.91813672,103.24,103.21,19.46024401]
[1770112338044,1.91813672,103.24,103.21,11.72190023]
[1770112338335,1.91813672,103.25,103.22,2.03334023]
[1770112338844,7.73834378,103.26,103.22,2.03334023]
[1770112339041,9.6564805,103.26,103.23,9.68710646]
[1770112339544,19.33920304,103.28,103.24,2.03334023]
[1770112339845,1.91813672,103.28,103.25,2.03334023]
[1770112340246,1.91813672,103.29,103.26,1.82395616]
[1770112341048,9.6564805,103.29,103.26,1.82395616]
[1770112341232,9.6564805,103.29,103.26,11.50781845]
[1770112341233,1.91813672,103.29,103.26,11.50781845]
[1770112342256,19.3380154,103.29,103.26,11.50781845]
[1770112343346,11.59967162,103.29,103.26,11.50781845]
[1770112344743,1.86964524,103.28,103.25,11.50868192]
[1770112344925,9.60798902,103.28,103.25,11.50868192]
[1770112345131,1.86964524,103.28,103.25,9.68472576]
[1770112345931,1.86964524,103.28,103.25,11.50868192]
[1770112347047,1.86964524,103.28,103.25,9.68472576]
[1770112348652,1.86964524,103.28,103.25,17.42306954]
[1770112348948,1.86964524,103.28,103.25,19.2470257]
[1770112349154,1.86964524,103.28,103.25,9.68472576]
[1770112349954,1.86964524,103.28,103.25,19.2470257]
[1770112350253,1.86964524,103.28,103.25,43.46010076]
[1770112351941,1.86964524,103.28,103.25,35.72175698]
[1770112354161,1.86964524,103.28,103.25,38.60750999]
[1770112355757,1.86964524,103.29,103.26,1.82395616]
[1770112358658,1.86964524,103.28,103.25,38.60750999]
[1770112358951,1.86964524,103.28,103.25,14.39443493]
[1770112359155,1.86964524,103.28,103.25,11.50868192]
[1770112359853,1.86964524,103.28,103.25,14.39443493]
[1770112361360,11.55150069,103.29,103.26,11.50810347]
[1770112361856,1.86964524,103.29,103.26,11.50810347]
[1770112362047,1.86964524,103.31,103.28,4.70970917]
[1770112362356,2.06964524,103.34,103.31,1.82395616]
[1770112362537,2.06964524,103.34,103.31,4.70970917]
[1770112363055,0.2,103.34,103.32,2.88575301]
[1770112363430,0.2,103.34,103.32,12.56405978]
[1770112364045,0.2,103.34,103.33,4.70970917]
[1770112364443,0.2,103.34,103.33,4.70512902]
[1770112364759,0.2,103.34,103.33,1.82395616]
[1770112364953,0.2,103.34,103.32,38.58010632]
[1770112365162,0.2,103.34,103.32,9.67830677]
[1770112365455,2.06964524,103.34,103.32,9.67830677]
[1770112366641,2.06964524,103.34,103.31,9.67925005]
[1770112366851,1.86964524,103.33,103.3,11.50377766]
[1770112367958,1.86964524,103.33,103.3,9.6798215]
[1770112369752,1.86964524,103.33,103.3,11.50377766]
[1770112370654,14.42881747,103.33,103.29,11.47449074]
[1770112371159,1.83140027,103.32,103.29,11.47449074]
[1770112372563,1.83140027,103.32,103.29,14.3556636]
[1770112372959,1.83140027,103.32,103.29,12.56211449]
[1770112373156,1.83140027,103.32,103.29,9.68094163]
[1770112373640,4.71257313,103.32,103.29,9.68094163]
[1770112373838,4.71257313,103.32,103.28,28.93399952]
[1770112373839,1.78711845,103.3,103.27,1.84702119]
[1770112374041,1.78711845,103.29,103.26,38.4307168]
[1770112374234,1.78711845,103.29,103.26,11.5307168]
[1770112378055,11.46724158,103.31,103.27,1.84702119]
[1770112378257,11.46724158,103.31,103.28,1.84702119]
[1770112378455,11.46724158,103.31,103.28,11.52915925]
[1770112378653,1.78711845,103.31,103.28,14.41033211]
[1770112378971,1.78711845,103.31,103.28,11.52915925]
[1770112381170,1.78711845,103.3,103.27,11.52978195]
[1770112381376,1.78711845,103.3,103.28,9.68238206]
[1770112383181,1.78711845,103.3,103.27,11.52985619]
[1770112383475,14.34794962,103.31,103.28,1.84702119]
[1770112385676,1.78711845,103.3,103.27,1.84702119]
[1770112386061,1.78711845,103.3,103.27,11.52967748]
[1770112386582,1.78711845,103.31,103.28,11.5291929]
[1770112388496,4.66829131,103.31,103.28,11.5291929]
[1770112390183,2.88117286,103.31,103.28,11.5291929]
[1770112390379,1.78711845,103.3,103.28,11.5291929]
[1770112391280,4.66829131,103.31,103.28,11.5291929]
[1770112392681,14.34883342,103.3,103.27,1.84702119]
[1770112392884,4.66829131,103.28,103.25,1.84702119]
[1770112393184,4.66829131,103.26,103.23,1.84702119]
[1770112393379,1.78711845,103.28,103.25,1.84702119]
[1770112393969,4.66829131,103.28,103.25,1.84702119]
[1770112395084,1.78711845,103.28,103.25,1.84702119]
[1770112397471,1.78711845,103.28,103.25,11.53196985]
[1770112400494,5.06004826,103.33,103.26,4.69867747]
[1770112400785,5.06004826,103.33,103.31,4.69867747]
[1770112400996,11.70559993,103.34,103.31,4.69867747]
[1770112401163,1.82868418,103.33,103.29,4.69867747]
[1770112401369,1.82868418,103.31,103.28,11.49942715]
[1770112402476,1.82868418,103.31,103.28,14.38060001]
[1770112406684,4.70985704,103.33,103.3,1.81750461]
[1770112406997,1.82868418,103.33,103.3,4.69867747]
[1770112407192,1.82868418,103.33,103.3,1.81750461]
[1770112408075,4.70985704,103.33,103.3,1.81750461]
[1770112408893,1.82868418,103.33,103.3,11.4976912]
[1770112410200,1.82868418,103.33,103.3,14.37886406]
[1770112410396,1.82868418,103.33,103.3,38.58021933]
[1770112410778,1.82868418,103.33,103.3,35.69904647]
[1770112412889,1.82868418,103.33,103.3,38.58021933]
[1770112413278,0.2,103.34,103.32,11.49568425]
[1770112413996,0.2,103.34,103.32,1.81750461]
[1770112414198,0.2,103.34,103.32,11.49606451]
[1770112414395,2.02868418,103.34,103.32,1.81750461]
[1770112414897,2.02868418,103.34,103.31,14.37775577]
[1770112415206,2.02868418,103.34,103.3,24.20135527]
[1770112415207,0.2,103.35,103.33,1.81750461]
[1770112415377,0.2,103.35,103.33,11.49445719]
[1770112416016,1e-08,103.35,103.34,1.81750461]
[1770112416204,1e-08,103.35,103.34,4.69867747]
[1770112416509,1e-08,103.35,103.34,1.81750461]
[1770112417392,1e-08,103.35,103.34,11.49429965]
[1770112418285,2.02868418,103.36,103.34,9.67679504]
[1770112418480,0.2,103.36,103.34,11.49429965]
[1770112418686,2.02868418,103.36,103.34,11.49429965]
[1770112418903,2.02868418,103.36,103.33,11.49472714]
[1770112419089,2.02868418,103.36,103.34,9.67672289]
[1770112422990,2.02868418,103.36,103.34,11.4942275]
[1770112424600,0.2,103.36,103.34,11.4942275]
[1770112424786,0.2,103.36,103.34,14.37540036]
[1770112425693,2.02868418,103.36,103.34,14.37540036]
[1770112426204,0.2,103.36,103.34,14.37540036]
[1770112426389,0.2,103.36,103.34,14.37460884]
[1770112428806,2.02868418,103.36,103.34,11.4942275]
[1770112429007,0.2,103.36,103.34,14.37460884]
[1770112430018,0.2,103.36,103.34,38.56659645]
[1770112432217,0.2,103.36,103.34,14.37460884]
[1770112434721,1.82257916,103.35,103.32,1.8264422]
[1770112434894,1.82257916,103.35,103.33,9.677721]
[1770112435094,1.82257916,103.35,103.32,1.8264422]
[1770112435095,1.82257916,103.34,103.32,1.8264422]
[1770112435417,1.82257916,103.34,103.32,11.50508893]
[1770112440099,1.82257916,103.35,103.32,11.50508893]
[1770112441114,1.82257916,103.34,103.32,9.67864673]
[1770112442329,1.82257916,103.34,103.32,11.50508893]
[1770112442529,1.82257916,103.35,103.32,14.38547027]
[1770112445127,1.82257916,103.35,103.32,9.67864673]
[1770112445326,1.82257916,103.34,103.31,9.67943489]
[1770112445634,1.82257916,103.33,103.3,11.50641529]
[1770112445931,1.82257916,103.33,103.32,9.67866821]
[1770112446297,1.82257916,103.34,103.32,9.67866821]
[1770112446717,1.82257916,103.34,103.32,12.55904955]
[1770112447108,1.82257916,103.34,103.32,14.38549175]
[1770112447502,9.87546659,103.36,103.34,1.8264422]
[1770112447503,2.02257916,103.36,103.34,1.8264422]
[1770112447725,0.2,103.36,103.34,4.70682354]
[1770112448235,2.02257916,103.36,103.34,4.70682354]
[1770112449713,2.02257916,103.36,103.34,14.38357872]
[1770112451441,2.02257916,103.36,103.34,12.55713652]
[1770112452413,2.02257916,103.36,103.34,14.38357872]
[1770112456430,0.2,103.36,103.34,14.38357872]
[1770112456623,2.02257916,103.37,103.35,4.70682354]
[1770112456821,0.2,103.37,103.36,4.70682354]
[1770112457712,1.82257916,103.38,103.36,4.70682354]
[1770112458409,1.82257916,103.38,103.36,14.38141997]
[1770112458608,1.82257916,103.38,103.35,14.38216069]
[1770112458826,1.82257916,103.37,103.34,12.55673398]
[1770112459033,1.82257916,103.37,103.34,9.67635264]
[1770112459207,1.82257916,103.36,103.33,41.26402937]
[1770112459410,1.82257916,103.36,103.33,38.38364803]
[1770112459941,2.88038134,103.37,103.32,2.88038134]
[1770112459942,4.7029605,103.35,103.32,1.8264422]
[1770112460110,1.82257916,103.35,103.32,11.50504617]
[1770112461921,1.77789211,103.34,103.32,11.50504617]
[1770112464630,1.77789211,103.35,103.32,11.50504617]
[1770112464830,1.77789211,103.35,103.32,14.38542751]
[1770112468230,1.77789211,103.35,103.32,11.50504617]
[1770112468437,1.77789211,103.34,103.32,11.50504617]
[1770112468937,1.77789211,103.34,103.32,1.8264422]
[1770112469134,1.77789211,103.34,103.32,11.50509767]
[1770112470445,1.77789211,103.33,103.31,9.67918264]
[1770112471140,1.77789211,103.33,103.3,38.50621344]
[1770112472636,1.77789211,103.33,103.31,1.9462177]
[1770112472844,1.77789211,103.34,103.32,1.9462177]
[1770112473018,1.77789211,103.34,103.31,4.82659904]
[1770112474334,1.77789211,103.35,103.32,11.62461202]
[1770112474839,11.45395378,103.35,103.32,9.67839432]
[1770112475140,1.77789211,103.34,103.31,35.82416865]
[1770112475322,1.77789211,103.34,103.31,11.62532782]
[1770112475642,1.77789211,103.34,103.32,9.67864597]
[1770112477828,1.77789211,103.34,103.31,11.62534667]
[1770112478553,1.77789211,103.34,103.32,1.9462177]
[1770112478843,1.77789211,103.34,103.31,11.62534667]
[1770112483154,1.77789211,103.31,103.28,11.62823655]
[1770112483441,4.65827345,103.3,103.27,16.48741127]
[1770112484030,1.77789211,103.29,103.27,14.54119357]
[1770112484225,1.77789211,103.28,103.27,14.54119357]
[1770112485446,1.77789211,103.29,103.27,14.54119357]
[1770112490357,1.80060812,103.28,103.27,14.54119357]
[1770112490732,1.80060812,103.28,103.25,11.59934278]
[1770112495933,1.80060812,103.28,103.25,11.6003483]
[1770112499857,1.8557044,103.27,103.24,41.3664466]
[1770112500052,1.8557044,103.26,103.24,36.56542608]
[1770112500357,1.8557044,103.26,103.23,11.60214204]
[1770112501066,1.8557044,103.25,103.22,11.60313492]
[1770112501355,1.8557044,103.25,103.21,29.88543456]
[1770112501356,1.8557044,103.25,103.23,1.91558596]
[1770112501551,1.8557044,103.25,103.23,11.60262078]
[1770112502140,1.8557044,103.25,103.22,1.91558596]
[1770112502340,1.8557044,103.25,103.21,14.58913848]
[1770112502655,1.8557044,103.25,103.22,11.60344574]
[1770112503846,1.8557044,103.25,103.23,1.91558596]
[1770112505741,1.8557044,103.25,103.23,14.4877676]
[1770112505941,1.8557044,103.25,103.23,11.60233304]
[1770112507154,1.8557044,103.27,103.25,1.91558596]
[1770112507549,1.8557044,103.27,103.25,4.80102052]
[1770112507750,1.8557044,103.27,103.24,14.48657829]
[1770112508868,1.8557044,103.24,103.21,14.58940163]
[1770112509163,1.8557044,103.23,103.21,0.1]
[1770112512175,24.21010222,103.27,103.21,2.98543456]
[1770112512380,1.8557044,103.25,103.22,14.48851489]
[1770112514775,11.54119978,103.25,103.22,11.60308033]
[1770112514968,1.8557044,103.24,103.22,9.68749437]
[1770112518076,1.8557044,103.24,103.21,11.70409527]
[1770112518570,1.8557044,103.23,103.21,0.1]
[1770112521979,1.8557044,103.23,103.21,2.00437324]
[1770112522354,11.44633615,103.25,103.22,1.90437324]
[1770112522866,1.76054487,103.25,103.22,4.7898078]
[1770112524178,1.76054487,103.25,103.22,14.47701561]
[1770112529868,1.76054487,103.25,103.23,1.90437324]
[1770112532082,1.76054487,103.25,103.23,11.59145839]
[1770112533783,1.76054487,103.26,103.23,14.47689295]
[1770112535282,11.44485697,103.26,103.23,14.47689295]
[1770112535784,11.44485697,103.26,103.24,1.90437324]
[1770112536097,11.44398984,103.27,103.24,4.7898078]
[1770112536276,11.4420242,103.29,103.26,1.90437324]
[1770112536485,1.76054487,103.28,103.25,4.7898078]
[1770112537489,1.76054487,103.29,103.26,4.7898078]
[1770112537663,1.76054487,103.29,103.27,1.90437324]
[1770112539685,1.76054487,103.3,103.27,1.90437324]
[1770112539870,1.76054487,103.3,103.28,1.90437324]
[1770112540791,1.76054487,103.3,103.28,4.7898078]
[1770112541872,1.76054487,103.3,103.28,2.88543456]
[1770112542196,11.4413523,103.3,103.27,4.7898078]
[1770112542596,11.4413523,103.3,103.27,14.47294673]
[1770112543493,1.76054487,103.28,103.25,1.90437324]
[1770112543690,1.76054487,103.28,103.24,14.47561691]
[1770112544801,4.64597943,103.28,103.24,11.59018235]
[1770112545097,1.76054487,103.27,103.24,11.59018235]
[1770112545798,1.76054487,103.27,103.24,14.47561691]
[1770112546002,1.76054487,103.27,103.25,1.90437324]
[1770112546509,1.76054487,103.27,103.24,14.47561691]
[1770112547197,11.44350935,103.28,103.25,1.90437324]
[1770112547390,11.44350935,103.28,103.25,4.7898078]
[1770112548408,11.44350935,103.28,103.25,4.79043411]
[1770112549604,1.76054487,103.27,103.25,4.79043411]
[1770112550402,1.76054487,103.27,103.25,1.90437324]
[1770112551203,1.76054487,103.27,103.24,14.41060695]
[1770112551394,1.92163403,103.26,103.22,1.83873697]
[1770112551601,1.92163403,103.24,103.21,1.93873697]
[1770112551908,1.92163403,103.21,103.19,0.1]
[1770112552294,1.75829146,103.23,103.2,1.79849934]
[1770112552496,1.75829146,103.22,103.2,4.68456021]
[1770112553909,9.68657754,103.24,103.21,2.88606087]
[1770112554094,9.68657754,103.24,103.22,1.79849934]
[1770112554293,11.444869,103.24,103.21,4.68456021]
[1770112554810,11.444869,103.24,103.21,1.79849934]
[1770112556494,11.444869,103.24,103.2,14.37414673]
[1770112556809,11.444869,103.24,103.21,2.88606087]
[1770112557213,1.75829146,103.24,103.21,12.57466338]
[1770112557812,11.44460023,103.24,103.21,2.88606087]
[1770112558310,9.68630877,103.24,103.21,2.88606087]
[1770112558514,11.44460023,103.24,103.21,2.88606087]
[1770112559220,11.44550666,103.23,103.2,4.68456021]
[1770112559825,9.6872152,103.23,103.19,12.6763831]
[1770112560019,1.75829146,103.22,103.19,11.58882157]
[1770112560217,1.75829146,103.22,103.19,14.47488244]
[1770112560419,1.75829146,103.22,103.2,1.79849934]
[1770112560620,1.75829146,103.22,103.19,14.47488244]
[1770112561627,11.44497497,103.24,103.21,1.79849934]
[1770112562126,1.75829146,103.23,103.2,4.68456021]
[1770112563224,1.75829146,103.22,103.19,11.58882157]
[1770112565331,1.75829146,103.22,103.2,1.79849934]
[1770112566430,11.44603302,103.23,103.21,1.79849934]
[1770112566728,11.44603302,103.23,103.2,2.88606087]
[1770112566729,1.75829146,103.23,103.2,14.37426269]
[1770112568012,1.75829146,103.23,103.2,11.48820182]
[1770112568229,1.75829146,103.23,103.2,14.37426269]
[1770112570512,11.4454176,103.23,103.2,11.48820182]
[1770112570712,11.4454176,103.23,103.19,2.98606087]
[1770112570713,1.75829146,103.22,103.19,14.47490094]
[1770112570917,11.4454176,103.23,103.2,11.48839784]
[1770112571103,11.4454176,103.23,103.2,1.79849934]
[1770112571720,1.75829146,103.23,103.2,11.48831556]
[1770112571919,11.44491058,103.24,103.21,1.79849934]
[1770112572427,1.75829146,103.23,103.2,14.37437643]
[1770112580229,11.44552108,103.23,103.2,14.37437643]
[1770112583212,1.75829146,103.23,103.2,12.57587709]
[1770112583413,11.51209771,103.26,103.23,1.77713708]
[1770112583643,11.51089809,103.27,103.24,2.88606087]
[1770112583822,1.82711507,103.27,103.24,4.66319795]
[1770112584026,1.82711507,103.26,103.24,4.66319795]
[1770112584335,1.82711507,103.27,103.24,4.66319795]
[1770112585315,1.82711507,103.26,103.24,9.68616485]
[1770112585532,1.82711507,103.26,103.24,11.46330193]
[1770112587939,1.82711507,103.26,103.24,14.3493628]
[1770112588141,1.82711507,103.26,103.24,4.66319795]
[1770112588317,1.82711507,103.26,103.24,2.88606087]
[1770112590343,11.51142401,103.26,103.24,2.88606087]
[1770112590544,1.82711507,103.26,103.24,2.88606087]
[1770112590739,1.82711507,103.26,103.24,4.66319795]
[1770112590937,1.82711507,103.26,103.24,2.88606087]
[1770112591152,1.82711507,103.26,103.24,4.66319795]
[1770112591340,1.82711507,103.27,103.25,2.88606087]
[1770112597143,9.68299509,103.28,103.25,4.66319795]
[1770112597441,11.5085944,103.29,103.27,2.88606087]
[1770112598151,9.68091418,103.3,103.28,2.88606087]
[1770112598735,33.87939351,103.31,103.29,2.88606087]
[1770112599236,79.93956287,103.34,103.29,2.88606087]
[1770112599551,41.23011437,103.34,103.29,4.66319795]
[1770112599853,38.3440535,103.34,103.3,2.88606087]
[1770112600031,1.82711507,103.33,103.29,4.66319795]
[1770112600731,1.82711507,103.33,103.29,2.88606087]
[1770112602147,1.82711507,103.31,103.29,2.88606087]
[1770112602448,1.82711507,103.31,103.28,4.66319795]
[1770112603328,35.70245381,103.32,103.29,4.66319795]
[1770112603731,1.82711507,103.31,103.29,4.66319795]
[1770112604631,11.50578328,103.32,103.3,2.88606087]
[1770112605645,11.50578328,103.32,103.29,4.66319795]
[1770112606353,35.70245381,103.32,103.29,4.66319795]
[1770112608436,1.82711507,103.31,103.28,14.3455961]
[1770112608841,1.82711507,103.31,103.28,11.45953523]
[1770112609245,1.82711507,103.31,103.28,14.3455961]
[1770112610358,11.5069152,103.31,103.29,1.85785106]
[1770112611352,27.07835823,103.33,103.29,4.74188045]